bitfinex/quotes_SOLUSD_20250722
["timestamp","ask_amount","ask_price","bid_price","bid_amount"]
[1753177020458,10.9668101,197.56,197.46,0.2]
[1753177020459,5.06096273,197.6,197.53,10.9668101]
[1753177020772,0.68,197.62,197.47,0.71]
[1753177020773,10.9668101,197.54,197.47,0.71]
[1753177020949,10.9668101,197.54,197.48,3.34055979]
[1753177020950,10.9668101,197.5,197.48,3.34055979]
[1753177021267,11.6468101,197.49,197.46,0.2]
[1753177021573,10.9668101,197.47,197.45,1e-08]
[1753177021761,135.65149407,197.46,197.45,1e-08]
[1753177021958,16.78468397,197.45,197.38,0.03]
[1753177022161,0.68,197.45,197.38,0.03]
[1753177022351,10.9668101,197.43,197.38,0.03]
[1753177022680,10.9668101,197.49,197.43,0.71]
[1753177022976,10.9668101,197.49,197.44,3.3379093]
[1753177023154,10.9668101,197.49,197.45,3.3379093]
[1753177023359,10.9668101,197.46,197.42,0.03]
[1753177023674,99.36468397,197.48,197.42,0.03]
[1753177023851,10.9668101,197.43,197.42,0.03]
[1753177024278,11.6468101,197.43,197.42,0.03]
[1753177024873,17.91189645,197.43,197.42,0.03]
[1753177025384,17.23189645,197.43,197.42,0.03]
[1753177025590,1.2,197.43,197.42,0.03]
[1753177025796,1.2,197.43,197.42,11.7068101]
[1753177025948,1.2,197.43,197.42,4.06328507]
[1753177026280,11.67681,197.5,197.42,4.06328507]
[1753177026281,11.67681,197.5,197.42,15.53662946]
[1753177026454,11.67681,197.5,197.47,10.9668101]
[1753177026648,11.67681,197.5,197.42,6.81693429]
[1753177026649,11.67681,197.5,197.48,10.9668101]
[1753177026886,11.67681,197.5,197.49,20.05751282]
[1753177027044,0.06,197.56,197.49,32.71638162]
[1753177027373,0.06,197.56,197.55,10.9668101]
[1753177027751,0.06,197.56,197.55,14.27878693]
[1753177027960,0.06,197.56,197.55,3.31197683]
[1753177028297,0.06,197.56,197.55,14.27878693]
[1753177028664,0.06,197.56,197.55,14.78498789]
[1753177028994,2.63642391,197.67,197.55,36.63168147]
[1753177029194,0.68,197.68,197.59,10.9668101]
[1753177029493,0.68,197.68,197.59,14.78488541]
[1753177029670,0.06,197.64,197.59,14.78488541]
[1753177030464,0.06,197.64,197.59,14.27878693]
[1753177030663,11.0268101,197.64,197.59,3.31197683]
[1753177030887,10.9668101,197.63,197.59,3.31197683]
[1753177031097,11.7168101,197.6,197.59,3.31197683]
[1753177031392,0.06,197.6,197.59,3.31197683]
[1753177033270,11.0268101,197.6,197.59,3.31197683]
[1753177033470,11.7168101,197.6,197.49,5.06354752]
[1753177033683,10.9668101,197.59,197.52,10.9668101]
[1753177033881,10.9668101,197.59,197.53,14.28477966]
[1753177034185,11.7168101,197.6,197.54,14.28477966]
[1753177034368,0.06,197.6,197.56,10.9668101]
[1753177034568,0.06,197.6,197.57,3.31796956]
[1753177034779,0.69,197.59,197.58,3.31796956]
[1753177034985,16.71779496,197.59,197.58,3.31796956]
[1753177035209,16.71779496,197.59,197.49,10.9668101]
[1753177035373,10.9668101,197.56,197.49,10.9668101]
[1753177035567,10.9668101,197.56,197.5,10.9668101]
[1753177035771,10.9668101,197.55,197.48,0.72]
[1753177035978,5.75098486,197.59,197.46,5.06431682]
[1753177035979,10.9668101,197.53,197.46,5.06431682]
[1753177036179,10.9668101,197.53,197.47,10.9668101]
[1753177036474,17.71344702,197.59,197.51,10.9668101]
[1753177036475,10.9668101,197.57,197.51,10.9668101]
[1753177036684,10.9668101,197.58,197.51,10.9668101]
[1753177036883,16.02829973,197.58,197.51,10.9668101]
[1753177037105,10.9668101,197.57,197.51,16.02973418]
[1753177037404,10.9668101,197.57,197.51,10.9668101]
[1753177037607,10.9668101,197.57,197.5,16.03003534]
[1753177037903,5.12097763,197.6,197.51,0.72]
[1753177037904,0.75,197.6,197.51,0.72]
[1753177038083,10.9668101,197.57,197.51,10.9668101]
[1753177038284,10.9668101,197.58,197.51,10.9668101]
[1753177038490,0.69,197.58,197.51,10.9668101]
[1753177038691,10.9668101,197.57,197.51,10.9668101]
[1753177038987,10.9668101,197.53,197.46,10.9668101]
[1753177039178,10.9668101,197.49,197.43,10.9668101]
[1753177039905,0.69,197.49,197.42,10.9968101]
[1753177040126,10.9668101,197.52,197.46,10.9668101]
[1753177040402,10.9668101,197.53,197.46,10.9668101]
[1753177040602,10.9668101,197.49,197.42,5.09532012]
[1753177040789,10.9668101,197.49,197.42,16.06213022]
[1753177040992,10.9668101,197.5,197.43,10.9668101]
[1753177041190,10.9668101,197.5,197.44,10.9668101]
[1753177041507,10.9668101,197.51,197.44,10.9668101]
[1753177041687,6.0152,197.56,197.45,10.9668101]
[1753177041882,6.0152,197.56,197.47,10.9668101]
[1753177041883,10.9668101,197.53,197.47,10.9668101]
[1753177042083,6.0152,197.56,197.45,10.9668101]
[1753177042084,10.9668101,197.52,197.45,10.9668101]
[1753177042298,10.9668101,197.5,197.42,0.75]
[1753177042498,5.06216321,197.55,197.42,0.03]
[1753177042499,0.69,197.49,197.42,0.03]
[1753177042807,11.6568101,197.49,197.42,0.03]
[1753177042983,10.9668101,197.48,197.42,10.9968101]
[1753177043303,17.71718725,197.55,197.43,16.03189645]
[1753177043304,10.9668101,197.5,197.43,16.03189645]
[1753177043481,10.9668101,197.49,197.43,5.06508635]
[1753177043878,10.9668101,197.49,197.42,16.06214466]
[1753177044081,0.69,197.5,197.43,10.9668101]
[1753177044304,0.69,197.5,197.42,5.09533456]
[1753177044305,10.9668101,197.51,197.44,10.9668101]
[1753177044679,10.9668101,197.52,197.45,10.9668101]
[1753177044884,10.9668101,197.57,197.51,10.9668101]
[1753177045109,10.9668101,197.57,197.52,5.06277845]
[1753177045313,0.69,197.58,197.52,5.06277845]
[1753177045314,0.69,197.58,197.52,16.02958855]
[1753177045490,5.05996053,197.63,197.53,11.6868101]
[1753177045692,10.9668101,197.63,197.56,10.9668101]
[1753177046099,10.9668101,197.64,197.57,10.9668101]
[1753177046823,10.9668101,197.63,197.57,16.02805624]
[1753177047038,2.63563907,197.73,197.62,10.9668101]
[1753177047199,10.9668101,197.72,197.66,10.9668101]
[1753177047396,2.63563907,197.73,197.67,3.35739769]
[1753177047601,2.63563907,197.73,197.68,3.35739769]
[1753177047909,0.1,197.76,197.72,10.9668101]
[1753177048099,0.1,197.76,197.74,10.9668101]
[1753177048301,0.1,197.76,197.75,3.35739769]
[1753177049090,0.1,197.76,197.75,3.35656516]
[1753177049293,16.8134444,197.76,197.75,3.35656516]
[1753177049692,5.8466343,197.76,197.75,3.35656516]
[1753177049891,16.8134444,197.76,197.75,3.35656516]
[1753177050415,17.3134444,197.76,197.75,3.35656516]
[1753177052316,16.78468397,197.75,197.63,10.9668101]
[1753177052522,29.95503016,197.76,197.63,10.9668101]
[1753177052523,10.9668101,197.71,197.65,10.9668101]
[1753177052822,10.9668101,197.72,197.65,10.9668101]
[1753177053031,10.9668101,197.71,197.64,10.9668101]
[1753177053512,10.9668101,197.71,197.65,10.9668101]
[1753177053718,10.9668101,197.72,197.66,10.9668101]
[1753177054015,5.0574015,197.73,197.67,0.72]
[1753177054310,10.9668101,197.73,197.67,0.72]
[1753177054720,10.9668101,197.72,197.67,0.72]
[1753177054927,5.0579131,197.71,197.67,0.72]
[1753177055513,5.0579131,197.71,197.68,0.72]
[1753177055716,0.6,197.76,197.7,10.9668101]
[1753177056027,16.123501,197.76,197.7,10.9668101]
[1753177056194,16.123501,197.76,197.69,11.6868101]
[1753177056394,10.9668101,197.73,197.66,11.6868101]
[1753177056623,10.9668101,197.71,197.65,0.72]
[1753177057011,16.02479849,197.71,197.65,11.6868101]
[1753177057319,16.02479849,197.71,197.65,0.72]
[1753177057629,10.9668101,197.66,197.58,10.9668101]
[1753177057812,0.69,197.65,197.57,10.9668101]
[1753177058002,10.9668101,197.63,197.57,10.9668101]
[1753177058199,0.69,197.68,197.59,10.9668101]
[1753177058415,10.9668101,197.65,197.59,10.9668101]
[1753177058598,0.69,197.68,197.58,11.6868101]
[1753177058923,10.9668101,197.68,197.62,10.9668101]
[1753177059123,5.74798839,197.71,197.62,10.9668101]
[1753177059124,5.05816894,197.7,197.62,11.6868101]
[1753177059305,10.9668101,197.68,197.62,11.6868101]
[1753177059622,10.9668101,197.69,197.63,10.9668101]
[1753177059918,16.02497904,197.7,197.63,10.9668101]
[1753177060117,0.71,197.74,197.62,0.72]
[1753177060118,10.9668101,197.72,197.66,10.9668101]
[1753177060425,10.9668101,197.72,197.66,11.6568101]
[1753177060998,16.02451542,197.72,197.66,11.6568101]
[1753177061324,16.02425912,197.73,197.66,16.71588028]
[1753177061515,10.9668101,197.69,197.62,0.69]
[1753177061718,10.9668101,197.68,197.62,11.6568101]
[1753177062114,10.9668101,197.65,197.58,0.69]
[1753177062323,10.9668101,197.64,197.58,11.6568101]
[1753177062520,10.9668101,197.64,197.58,0.69]
[1753177062821,0.71,197.66,197.59,10.9668101]
[1753177063013,10.9668101,197.65,197.59,10.9668101]
[1753177063317,5.05970451,197.64,197.59,10.9668101]
[1753177063522,10.9668101,197.64,197.55,0.50620096]
[1753177063723,0.71,197.69,197.6,11.6568101]
[1753177063900,26.0,197.74,197.62,10.9668101]
[1753177063901,10.9668101,197.68,197.62,10.9668101]
[1753177064096,10.9668101,197.68,197.63,3.30670602]
[1753177064330,10.9668101,197.68,197.64,3.30670602]
[1753177064627,10.9668101,197.67,197.65,3.30670602]
[1753177064930,10.9668101,197.67,197.66,3.30670602]
[1753177065424,5.76816894,197.7,197.66,3.30670602]
[1753177065606,5.76816894,197.7,197.62,0.69]
[1753177065607,10.9668101,197.67,197.62,0.69]
[1753177065797,10.9668101,197.66,197.63,3.30811159]
[1753177066003,5.05816894,197.7,197.64,3.30811159]
[1753177066203,10.9668101,197.65,197.59,0.69]
[1753177066504,10.9668101,197.62,197.6,3.31037007]
[1753177066821,10.9668101,197.63,197.61,3.31037007]
[1753177067026,10.9668101,197.63,197.62,3.31037007]
[1753177067027,16.02677063,197.63,197.62,3.31037007]
[1753177067225,16.73677063,197.63,197.62,3.31037007]
[1753177067409,10.9668101,197.7,197.62,14.96718017]
[1753177067617,6.3777,197.75,197.62,14.96718017]
[1753177067618,10.9668101,197.73,197.66,10.9668101]
[1753177067815,0.06,197.77,197.67,4.50626373]
[1753177068008,0.06,197.77,197.72,10.9668101]
[1753177068203,0.06,197.77,197.74,10.9668101]
[1753177068511,0.06,197.77,197.75,15.47286917]
[1753177068900,0.06,197.77,197.75,20.52975918]
[1753177070835,0.01068174,197.76,197.75,20.52975918]
[1753177071908,0.01068174,197.76,197.75,9.56294908]
[1753177072126,0.01068174,197.76,197.75,20.52975918]
[1753177072332,0.00758504,197.77,197.75,20.52975918]
[1753177072628,0.00758504,197.77,197.76,64.02906414]
[1753177072832,0.06,197.8,197.76,47.24438017]
[1753177073011,0.06,197.8,197.79,10.9668101]
[1753177073212,0.06,197.8,197.79,19.3330475]
[1753177073432,0.06,197.8,197.79,20.0230475]
[1753177073613,0.06,197.8,197.79,4.00037007]
[1753177073814,0.06,197.8,197.79,3.31037007]
[1753177075243,0.06,197.8,197.79,3.29936219]
[1753177075411,11.7368101,197.8,197.79,3.29936219]
[1753177075606,0.77,197.8,197.79,3.29936219]
[1753177075811,0.06,197.8,197.79,3.29936219]
[1753177078817,0.06,197.8,197.79,14.95617229]
[1753177079115,0.06,197.8,197.79,20.01203962]
[1753177079926,0.06,197.8,197.79,20.51762635]
[1753177080157,0.06,197.8,197.79,3.29936219]
[1753177080972,0.06,197.8,197.79,14.95617229]
[1753177081119,0.06,197.8,197.79,20.01203962]
[1753177081319,0.06,197.84,197.82,26.0]
[1753177081526,0.06,197.84,197.83,14.26617229]
[1753177081730,0.06,197.84,197.83,3.29936219]
[1753177082323,0.06,197.84,197.83,14.95617229]
[1753177082539,0.06,197.84,197.83,3.98936219]
[1753177082963,0.06,197.84,197.83,14.95617229]
[1753177083246,0.06,197.84,197.83,35.18101735]
[1753177083418,0.06,197.84,197.83,20.01101735]
[1753177084636,0.06,197.84,197.83,3.29936219]
[1753177084826,11.7368101,197.84,197.83,3.29936219]
[1753177085040,0.77,197.84,197.83,3.29936219]
[1753177085368,16.79139966,197.84,197.83,3.29936219]
[1753177085535,16.79139966,197.84,197.74,16.02392942]
[1753177085853,10.9668101,197.81,197.74,16.02392942]
[1753177086066,10.9668101,197.81,197.75,14.12926016]
[1753177086234,10.9668101,197.81,197.76,3.16245006]
[1753177086557,11.6768101,197.81,197.77,3.16245006]
[1753177086859,10.9668101,197.81,197.78,3.16245006]
[1753177087073,0.71,197.8,197.79,3.16245006]
[1753177087227,11.6768101,197.8,197.79,3.16245006]
[1753177087560,10.9668101,197.81,197.79,3.16245006]
[1753177087728,10.9668101,197.81,197.8,3.16245006]
[1753177088130,11.6768101,197.81,197.8,3.16245006]
[1753177088548,11.6768101,197.81,197.71,10.9668101]
[1753177088759,10.9668101,197.78,197.72,8.22774161]
[1753177088971,10.9668101,197.78,197.73,3.17018483]
[1753177089177,0.06,197.84,197.74,4.3658994]
[1753177089384,0.06,197.84,197.78,10.9668101]
[1753177089550,10.9668101,197.82,197.79,3.17018483]
[1753177089875,11.0268101,197.84,197.8,3.17018483]
[1753177090083,11.0268101,197.84,197.81,3.17018483]
[1753177090240,11.6968101,197.84,197.82,3.17018483]
[1753177090447,16.75139966,197.84,197.83,3.17018483]
[1753177091071,11.6968101,197.84,197.83,3.17018483]
[1753177091644,16.75139966,197.84,197.83,3.17018483]
[1753177092052,0.06,197.84,197.83,3.17018483]
[1753177092771,0.06,197.84,197.83,8.22502989]
[1753177093149,0.06,197.84,197.83,3.17018483]
[1753177093458,0.73,197.84,197.83,3.17018483]
[1753177094043,0.06,197.84,197.83,3.17018483]
[1753177094448,0.73,197.84,197.83,3.17018483]
[1753177094648,0.06,197.84,197.83,3.17018483]
[1753177095073,0.06,197.84,197.83,15.57980065]
[1753177095248,0.06,197.84,197.83,16.26980065]
[1753177095762,0.06,197.84,197.83,16.77528515]
[1753177096269,0.06,197.84,197.83,9.42051439]
[1753177096455,0.06,197.84,197.83,16.77528515]
[1753177097574,0.06,197.84,197.83,3.17018483]
[1753177097743,0.06,197.84,197.83,8.22502989]
[1753177097946,0.06,197.84,197.83,3.17018483]
[1753177098566,0.06,197.84,197.83,8.22502989]
[1753177099069,0.06,197.84,197.83,3.17018483]
[1753177099451,0.06,197.84,197.83,8.22502989]
[1753177100052,0.06,197.84,197.83,16.26980065]
[1753177101473,0.06,197.84,197.83,3.17018483]
[1753177102673,0.06,197.84,197.83,8.22502989]
[1753177105282,0.06,197.84,197.83,3.17018483]
[1753177105463,0.73,197.84,197.83,3.17018483]
[1753177105893,8.08477076,197.84,197.83,3.17018483]
[1753177106083,8.08477076,197.84,197.83,2.45018483]
[1753177106468,98.68468397,197.83,197.68,7.35477076]
[1753177106662,7.35477076,197.75,197.69,7.35477076]
[1753177107394,7.35477076,197.77,197.71,7.35477076]
[1753177107560,0.67,197.8,197.71,7.35477076]
[1753177107761,7.35477076,197.81,197.75,7.35477076]
[1753177107975,7.35477076,197.81,197.74,7.35477076]
[1753177108172,25.44650083,197.84,197.72,0.69]
[1753177108383,7.35477076,197.78,197.72,7.35477076]
[1753177108580,7.35477076,197.75,197.68,5.05868069]
[1753177108770,7.35477076,197.74,197.68,12.41345145]
[1753177108983,7.35477076,197.73,197.67,0.03]
[1753177109211,7.35477076,197.72,197.67,0.03]
[1753177109492,7.35477076,197.7,197.67,0.03]
[1753177109696,7.35477076,197.68,197.67,0.03]
[1753177110288,8.02477076,197.68,197.67,0.03]
[1753177111207,16.71001725,197.68,197.67,0.03]
[1753177111406,44.47603778,197.68,197.67,0.03]
[1753177111685,44.47603778,197.68,197.63,0.03]
[1753177111686,16.78468397,197.67,197.63,0.03]
[1753177111886,10.98133656,197.64,197.59,0.03]
[1753177112097,10.98133656,197.6,197.59,0.03]
[1753177112468,11.65133656,197.6,197.59,0.03]
[1753177113372,16.7120653,197.6,197.59,0.03]
[1753177115271,11.77344707,197.62,197.59,0.03]
[1753177115471,10.98133656,197.6,197.59,0.03]
[1753177115987,28.43602053,197.6,197.59,0.03]
[1753177117173,11.65133656,197.6,197.59,0.03]
[1753177118669,16.7120653,197.6,197.59,0.03]
[1753177119294,11.1032907,197.62,197.59,0.03]
[1753177119496,10.98133656,197.6,197.59,0.03]
[1753177120009,10.98133656,197.61,197.59,0.03]
[1753177120296,10.98133656,197.62,197.59,0.03]
[1753177120672,10.98133656,197.63,197.59,0.73]
[1753177120873,10.98133656,197.63,197.6,3.19113112]
[1753177121066,10.98133656,197.62,197.59,0.03]
[1753177121273,0.69,197.66,197.6,3.19057561]
[1753177121486,10.98133656,197.64,197.61,3.18926484]
[1753177121803,10.98133656,197.64,197.59,0.03]
[1753177122008,10.98133656,197.63,197.6,3.18933115]
[1753177122183,10.98133656,197.63,197.61,3.18933115]
[1753177122383,10.98133656,197.63,197.59,0.03]
[1753177122587,10.98133656,197.61,197.6,3.18853379]
[1753177122900,0.69,197.64,197.6,3.1891965]
[1753177123102,10.98133656,197.61,197.59,0.03]
[1753177123279,10.98133656,197.6,197.59,0.03]
[1753177124201,11.67133656,197.6,197.59,0.03]
[1753177124699,16.7320653,197.6,197.59,0.03]
[1753177125472,33.51674927,197.6,197.59,0.03]
[1753177126309,16.7320653,197.6,197.59,0.03]
[1753177127994,10.98133656,197.6,197.59,0.03]
[1753177128193,10.98133656,197.61,197.59,0.03]
[1753177128382,7.69713239,197.63,197.59,0.03]
[1753177128383,10.98133656,197.6,197.59,0.03]
[1753177128979,10.98133656,197.61,197.59,0.03]
[1753177129383,2.63694626,197.63,197.59,0.03]
[1753177129573,10.98133656,197.62,197.59,0.03]
[1753177130001,2.63694626,197.63,197.6,3.18468182]
[1753177130198,10.98133656,197.64,197.6,0.7]
[1753177130375,10.98133656,197.64,197.61,3.18419841]
[1753177130699,10.98133656,197.62,197.59,0.03]
[1753177131199,10.98133656,197.63,197.6,3.1852952]
[1753177131500,10.98133656,197.63,197.59,0.73]
[1753177131702,10.98133656,197.63,197.6,3.18512511]
[1753177131882,10.98133656,197.63,197.59,0.73]
[1753177132080,10.98133656,197.63,197.6,3.18491558]
[1753177132274,10.98133656,197.63,197.59,0.73]
[1753177132507,10.98133656,197.64,197.6,3.88452042]
[1753177132676,7.69567375,197.66,197.61,0.7]
[1753177132877,10.98133656,197.65,197.61,0.7]
[1753177133072,10.98133656,197.65,197.59,16.07220017]
[1753177133277,7.37215939,197.65,197.6,3.88384581]
[1753177133502,7.37215939,197.65,197.61,3.88384581]
[1753177133704,7.37215939,197.65,197.61,0.7]
[1753177133905,7.37215939,197.67,197.62,3.88346]
[1753177134201,7.37215939,197.66,197.63,3.18346]
[1753177134403,0.69,197.69,197.6,5.06054328]
[1753177134404,7.37215939,197.67,197.6,12.43270267]
[1753177134606,7.37215939,197.67,197.61,3.88220053]
[1753177134807,7.37215939,197.67,197.62,3.18220053]
[1753177134989,7.37215939,197.67,197.63,3.88220053]
[1753177135180,7.37215939,197.68,197.64,3.18172645]
[1753177135387,7.37215939,197.67,197.61,0.7]
[1753177135582,2.63580005,197.7,197.63,5.05996053]
[1753177135801,2.63580005,197.7,197.64,3.88184787]
[1753177135802,7.37215939,197.69,197.64,3.88184787]
[1753177136000,7.37215939,197.69,197.65,3.18184787]
[1753177136191,7.37215939,197.69,197.66,3.18184787]
[1753177136499,7.37215939,197.68,197.61,8.07215939]
[1753177136703,2.63580005,197.7,197.64,7.37215939]
[1753177136906,10.00795944,197.7,197.65,3.85264891]
[1753177137077,10.00795944,197.7,197.66,3.15264891]
[1753177137284,10.00795944,197.7,197.67,3.15264891]
[1753177137482,0.06,197.68,197.66,0.7]
[1753177137717,0.06,197.68,197.67,11.22503597]
[1753177137892,0.06,197.68,197.67,16.28397258]
[1753177139303,0.06,197.68,197.67,8.91181319]
[1753177139507,0.06,197.68,197.67,3.15287658]
[1753177139696,0.06,197.68,197.67,3.85287658]
[1753177140006,0.06,197.68,197.67,16.28397258]
[1753177140495,2.63508367,197.76,197.67,28.9313141]
[1753177140699,7.37215939,197.77,197.7,7.37215939]
[1753177140884,7.37215939,197.77,197.71,3.15287658]
[1753177141083,7.37215939,197.73,197.72,3.15618825]
[1753177141283,2.63479078,197.79,197.72,3.15618825]
[1753177141284,0.25,197.75,197.72,3.15618825]
[1753177141617,7.37215939,197.73,197.63,5.75992201]
[1753177141785,7.37215939,197.69,197.64,3.15925494]
[1753177141986,7.37215939,197.66,197.65,3.15925494]
[1753177142384,7.62215939,197.66,197.62,3.15925494]
[1753177142594,0.25,197.65,197.63,3.1661685]
[1753177142789,0.25,197.68,197.61,0.03]
[1753177143096,0.25,197.68,197.62,3.16644089]
[1753177143299,0.25,197.68,197.63,3.16644089]
[1753177143501,75.06178698,197.72,197.61,0.03]
[1753177143694,7.37215939,197.64,197.62,3.16818541]
[1753177143896,7.37215939,197.64,197.63,3.16818541]
[1753177144110,12.6818639,197.64,197.63,3.16818541]
[1753177144402,7.62215939,197.64,197.63,3.16818541]
[1753177144629,7.37215939,197.64,197.63,3.16818541]
[1753177145307,0.25,197.67,197.63,3.86818541]
[1753177145308,7.37215939,197.67,197.63,3.86818541]
[1753177145513,7.37215939,197.68,197.64,3.86818541]
[1753177145684,7.37215939,197.67,197.65,3.16818541]
[1753177145889,7.37215939,197.67,197.66,3.16818541]
[1753177146597,7.62215939,197.67,197.66,3.16818541]
[1753177146801,7.37215939,197.67,197.66,3.16818541]
[1753177148103,5.05863868,197.69,197.66,3.16818541]
[1753177148417,5.05863868,197.69,197.67,3.17673661]
[1753177148618,7.37215939,197.68,197.62,5.7601764]
[1753177148803,7.37215939,197.67,197.63,3.17966336]
[1753177149111,7.37215939,197.67,197.64,3.17840769]
[1753177149316,7.37215939,197.68,197.65,3.17840769]
[1753177149502,7.37215939,197.68,197.66,3.17840769]
[1753177149705,7.37215939,197.68,197.67,3.17840769]
[1753177150624,7.37215939,197.7,197.67,3.17840769]
[1753177150921,7.37215939,197.7,197.68,3.17840769]
[1753177151120,7.37215939,197.7,197.69,3.17840769]
[1753177151430,7.37215939,197.71,197.69,3.17840769]
[1753177151718,7.37215939,197.73,197.7,3.17840769]
[1753177151900,7.37215939,197.73,197.71,3.17840769]
[1753177152221,7.37215939,197.75,197.72,3.17840769]
[1753177152434,7.37215939,197.75,197.73,3.17840769]
[1753177152730,0.71,197.75,197.74,3.18821719]
[1753177152895,8.08215939,197.75,197.74,3.18821719]
[1753177153095,7.37215939,197.75,197.74,3.18821719]
[1753177153318,0.06,197.78,197.74,8.93515708]
[1753177153506,0.06,197.78,197.75,10.56037658]
[1753177153718,0.06,197.78,197.76,11.06604001]
[1753177153920,0.06,197.78,197.77,10.56037658]
[1753177154596,0.06,197.78,197.77,11.25037658]
[1753177154796,0.06,197.78,197.77,11.75601444]
[1753177154998,0.06,197.78,197.77,3.87821719]
[1753177155215,0.06,197.78,197.77,3.18821719]
[1753177155418,7.43215939,197.78,197.77,3.18821719]
[1753177155632,8.14215939,197.78,197.77,3.18821719]
[1753177157012,7.43215939,197.78,197.77,3.18821719]
[1753177157414,12.48828235,197.78,197.77,3.18821719]
[1753177157721,13.19828235,197.78,197.77,3.18821719]
[1753177158723,25.83858976,197.78,197.67,7.37215939]
[1753177158930,18.96643037,197.78,197.68,11.24577265]
[1753177159123,7.37215939,197.74,197.69,3.18361326]
[1753177159334,7.37215939,197.74,197.7,3.18361326]
[1753177159508,7.37215939,197.73,197.71,3.18361326]
[1753177159707,7.37215939,197.73,197.72,3.18361326]
[1753177160129,8.08215939,197.73,197.72,3.18361326]
[1753177160632,8.08215939,197.73,197.72,3.18830815]
[1753177160824,8.08215939,197.73,197.64,0.03]
[1753177161124,7.37215939,197.69,197.65,3.18829615]
[1753177161332,7.37215939,197.69,197.66,3.18829615]
[1753177161505,7.37215939,197.68,197.67,3.18829615]
[1753177161905,7.37215939,197.7,197.67,3.18829615]
[1753177162214,7.37215939,197.7,197.68,3.18829615]
[1753177162413,7.37215939,197.7,197.69,3.18829615]
[1753177162937,7.37215939,197.72,197.69,3.18829615]
[1753177163135,7.37215939,197.73,197.7,3.18829615]
[1753177163318,7.37215939,197.74,197.71,3.18829615]
[1753177163626,7.37215939,197.73,197.72,3.18829615]
[1753177165930,7.37215939,197.77,197.72,3.18829615]
[1753177166132,7.43215939,197.78,197.73,3.18829615]
[1753177166429,7.43215939,197.78,197.74,3.87829615]
[1753177166640,0.06,197.78,197.75,3.87829615]
[1753177166932,0.06,197.78,197.76,3.87829615]
[1753177167160,0.06,197.78,197.77,3.18829615]
[1753177167335,0.06,197.78,197.77,3.87829615]
[1753177167533,0.06,197.78,197.77,3.18829615]
[1753177167720,12.48828235,197.78,197.77,3.18829615]
[1753177168040,13.19828235,197.78,197.77,3.18829615]
[1753177169237,5.11612296,197.78,197.77,3.18829615]
[1753177169550,16.78468397,197.77,197.66,5.05918195]
[1753177169727,7.37215939,197.69,197.67,3.22258618]
[1753177169909,7.37215939,197.69,197.68,3.22258618]
[1753177170111,12.43058419,197.69,197.68,3.22258618]
[1753177170512,7.37215939,197.69,197.68,3.22258618]
[1753177170707,5.05689001,197.75,197.68,3.22258618]
[1753177170906,7.37215939,197.7,197.69,3.22258618]
[1753177173029,8.08215939,197.76,197.69,3.22258618]
[1753177173030,7.37215939,197.71,197.69,3.22258618]
[1753177173230,7.37215939,197.71,197.7,3.22258618]
[1753177173421,5.0570931,197.75,197.7,3.22258618]
[1753177173627,5.0570931,197.75,197.71,3.22258618]
[1753177173837,7.37215939,197.77,197.72,3.91258618]
[1753177174151,7.37215939,197.76,197.73,3.22258618]
[1753177174342,7.37215939,197.75,197.74,3.22258618]
[1753177175415,7.37215939,197.76,197.74,3.22258618]
[1753177175623,2.63509746,197.77,197.75,3.22953178]
[1753177175820,10.00725685,197.77,197.76,3.22866244]
[1753177176121,26.0,197.81,197.76,3.91866244]
[1753177176122,7.37215939,197.81,197.76,3.91866244]
[1753177176323,12.42797042,197.8,197.77,3.22866244]
[1753177176547,12.42806883,197.79,197.77,3.22866244]
[1753177176722,7.43215939,197.78,197.77,3.22866244]
[1753177176928,12.48828235,197.78,197.77,3.22866244]
[1753177177234,12.71828235,197.78,197.77,3.22866244]
[1753177177925,25.35858976,197.78,197.68,1.5132]
[1753177178115,7.37215939,197.71,197.69,3.23041777]
[1753177178319,16.78468397,197.73,197.7,3.23041777]
[1753177178638,16.78468397,197.7,197.58,12.43319172]
[1753177178943,16.78468397,197.73,197.59,0.72]
[1753177178944,7.37215939,197.65,197.59,0.72]
[1753177179237,7.37215939,197.65,197.64,3.26646544]
[1753177181253,7.37215939,197.67,197.64,3.96646544]
[1753177181544,7.37215939,197.67,197.65,3.23646544]
[1753177181724,16.78468397,197.72,197.66,3.23646544]
[1753177181923,16.78468397,197.72,197.67,3.23646544]
[1753177182188,5.76765729,197.72,197.68,3.23646544]
[1753177182327,5.05765729,197.72,197.69,3.23646544]